Cogmind - Beta 14 @@@ ROGUE MODE // 2024.11.02 @ 15:18:59 Player: weedlord420 Result: Self-destructed Performance ------------- Evolutions (2) 1000 Regions Visited (7) 1400 Robots Destroyed (117) 585 Value Destroyed (2933) 2933 Prototype IDs (31) 620 Alien Tech Used (0) 0 Bonus (429) 429 TOTAL SCORE: 6967 Bonus ------- High Alert Combat Kills 69 Follower Combat Kills 60 Aligned with FarCom 300 Cogmind --------- Core Integrity 202/550 Matter 95/300 Energy 280/280 System Corruption 0% Temperature Cool (54) Movement Rolling (120) Ox2 Location -8/Materials Parts ------- > --- POWER (1) -------- Heavy Ion Engine > --- PROPULSION (2) --- Armored Wheel Armored Wheel > --- UTILITY (6) ------ High-capacity Storage Unit Improved Targeting Computer Advanced Targeting Computer Hacking Suite Hacking Suite High-powered Tractor Beam > --- WEAPON (2) ------- Ion Cannon High-powered Shotgun > --- INVENTORY (20) --- Heavy Ion Engine Light Angular Momentum Engine Armored Treads Armored Wheel Armored Wheel Armored Wheel Improved Cooling System Improved Cooling System Structural Scanner Ion Cannon Ion Cannon YOLO Cannon Flak Cannon Flak Cannon Improved Datajack Peak State ------------ > --- POWER ------------ Heavy Ion Engine > --- PROPULSION ------- Armored Wheel Armored Wheel > --- UTILITY ---------- Improved Cooling System High-capacity Storage Unit Improved Targeting Computer Armor Integrity Analyzer Hacking Suite High-powered Tractor Beam > --- WEAPON ----------- High-powered Shotgun Flak Cannon > --- INVENTORY -------- Heavy Ion Engine Light Angular Momentum Engine Armored Wheel Armored Wheel Armored Wheel Armored Wheel Improved Cooling System Structural Scanner Hacking Suite Ion Cannon Ion Cannon Ion Cannon YOLO Cannon Flak Cannon Improved Grenade Launcher Improved Datajack [Rating: 36] Favorites ----------- Power Heavy Ion Engine Engine Heavy Ion Engine Power Core Light Nuclear Core Propulsion Armored Wheel Treads Light Treads Wheel Armored Wheel Utility Hacking Suite Device Improved Heat Sink Storage High-capacity Storage Unit Processor Improved Targeting Computer Hackware Hacking Suite Protection Medium Armor Plating Weapon Ion Cannon Energy Gun Heavy EM Shotgun Energy Cannon Ion Cannon Ballistic Gun Heavy Assault Rifle Ballistic Cannon Flak Cannon Launcher Improved Grenade Launcher Build | -11 -10 -10 -9 -9 -9 -8 -8 ------- Run | Yrd Mat Min Mat Min Exi Min Mat Slots Evolved 4 | . . . 2 . . . 2 Power . | . . . . . . . . Propulsion . | . . . . . . . . Utility 4 | . . . 2 . . . 2 Weapon . | . . . . . . . . Parts Attached 84 | 6 10 . 21 4 1 7 35 Power 6 | 1 1 . 3 . . . 1 Engine 5 | 1 1 . 2 . . . 1 Core 1 | . . . 1 . . . . Reactor . | . . . . . . . . Propulsion 17 | 2 4 . 2 2 . 2 5 Treads 5 | 2 2 . . . . . 1 Leg . | . . . . . . . . Wheel 12 | . 2 . 2 2 . 2 4 Hover . | . . . . . . . . Flight . | . . . . . . . . Utility 27 | 1 3 . 7 1 1 1 13 Device 9 | . . . 1 1 . 1 6 Storage 5 | 1 2 . 1 . 1 . . Processor 4 | . . . 2 . . . 2 Hackware 2 | . 1 . . . . . 1 Protection 7 | . . . 3 . . . 4 Artifact . | . . . . . . . . Weapon 34 | 2 2 . 9 1 . 4 16 Energy Gun 1 | . . . 1 . . . . Energy Cannon 10 | . . . 3 1 . 2 4 Ballistic Gun 10 | 2 2 . 4 . . . 2 Ballistic Cannon 6 | . . . . . . . 6 Launcher 7 | . . . 1 . . 2 4 Special Weapon . | . . . . . . . . Impact Weapon . | . . . . . . . . Slashing Weapon . | . . . . . . . . Piercing Weapon . | . . . . . . . . Special Melee Weapon . | . . . . . . . . Unidentified Prototypes 2 | . . . 2 . . . . Parts Lost 19 | . . . 4 2 . 2 11 Power 2 | . . . 2 . . . . Propulsion 6 | . . . . 1 . 2 3 Utility 9 | . . . 2 1 . . 6 Weapon 2 | . . . . . . . 2 Highest Loss Streak 6 | . . . 2 1 . 1 6 To Critical Strikes . | . . . . . . . . Average Slot Usage (%) 98 | . 93 100 98 99 100 98 98 Engine 11 | . 14 14 9 11 11 11 9 Treads 3 | . 25 . . . . . . Wheel 18 | . 2 28 22 21 22 20 17 Device 7 | . . . 5 11 11 11 12 Storage 11 | . 14 14 11 11 11 11 9 Processor 8 | . . . 11 11 11 11 14 Hackware 11 | . 7 14 11 11 11 11 12 Protection 2 | . . . 4 . . . 5 Energy Cannon 9 | . . . 9 21 22 20 4 Ballistic Gun 11 | . 28 28 12 . . . 3 Ballistic Cannon 1 | . . . . . . . 8 Peak Build Rating 36 | 6 14 15 26 25 26 27 36 Average Rating 22 | 3 9 14 21 23 25 26 33 On Entrance 17 | . 6 14 15 25 24 26 27 Naked Turns . | . . . . . . . . Heaviest Build 73 | 12 53 53 62 62 61 61 73 Greatest Support 40 | 40 40 32 32 24 20 28 28 Greatest Overweight (x) 6 | . 3 1 2 5 3 6 2 Average Overweight (x) 1 | . . 1 1 2 3 2 2 Largest Inventory Capacity 20 | 8 20 20 20 20 20 20 20 Average Capacity 18 | 6 11 20 20 20 20 20 20 Most Carried 20 | 6 15 18 20 20 20 20 20 Average Carried 16 | 4 8 16 18 19 19 19 17 Final Capacity 20 | 8 20 20 20 20 20 20 20 Final Carried 20 | 4 14 18 20 18 20 20 16 Class Distribution -------------------- 92% | Mutant 7% | Hacker-Mutant Dominant Class ---------------- Mutant | -10/Materials Mutant | -10/Mines Mutant | -9/Materials Mutant | -9/Mines Mutant | -9/Exiles Mutant | -8/Mines Mutant | -8/Materials Resources | -11 -10 -10 -9 -9 -9 -8 -8 ----------- Run | Yrd Mat Min Mat Min Exi Min Mat Matter Collected 2045 | 192 261 207 426 68 . 135 756 Remotely 305 | . . . . . . . 305 Salvage Created 3095 | . 319 223 1012 275 . 390 876 Parts 236 | . 34 17 77 21 . 30 57 Haulers Intercepted 2 | . . . 1 . . . 1 Recyclers Shooed 3 | . 1 . 1 . . . 1 Parts Field Recycled . | . . . . . . . . Retrieved Matter . | . . . . . . . . Parts Self-Destructed . | . . . . . . . . Prevented . | . . . . . . . . Kills | -11 -10 -10 -9 -9 -9 -8 -8 ------- Run | Yrd Mat Min Mat Min Exi Min Mat Combat Hostiles Destroyed 92 | . 11 2 24 9 . 16 30 Guns 30 | . 11 2 8 . . . 9 Cannons 47 | . . . 12 9 . 6 20 AOE 15 | . . . 4 . . 10 1 Classes Destroyed 12 | . 5 2 4 . . . 1 Worker 7 | . . 3 1 . . 1 2 Builder 2 | . 1 . . . . . 1 Tunneler 2 | . . 1 . . . . 1 Hauler 2 | . . . 1 . . . 1 Recycler 2 | . . . 1 . . . 1 Operator 3 | . 1 . 2 . . . . Watcher 7 | . 3 . 3 . . . 1 Swarmer 42 | . 8 . 10 4 . 10 10 Grunt 36 | . 3 2 8 4 . 6 13 Duelist 2 | . . . 1 1 . . . Sentry 8 | . . . 5 . . . 3 Specialist 4 | . . . . . . . 4 Best Kill Streak 7 | . 3 3 6 4 . 4 7 Combat Bots Only 5 | . 3 2 4 4 . 4 5 Max Kills in Single Turn 4 | . 1 1 3 1 . 4 2 Gunslinging . | . . . . . . . . Exploded 4 | . . . 3 . . 4 1 Melee . | . . . . . . . . Uniques/NPCs Destroyed . | . . . . . . . . Combat | -11 -10 -10 -9 -9 -9 -8 -8 -------- Run | Yrd Mat Min Mat Min Exi Min Mat Hostile Shots Fired 475 | . 49 6 103 23 . 31 263 Missed 142 | . 17 2 26 3 . 9 85 Damage Taken 4287 | . 292 59 1032 294 . 272 2338 Core 669 | . 28 . 199 75 . 19 348 Absorbed by Shields 176 | . . . . . . . 176 Regen/Repaired (Parts) 150 | . . . 80 . . . 70 Core Remaining (%) 71 | 100 . 88 . . . 26 . Volleys Fired 244 | . 39 12 71 18 . 20 84 Largest 2 | . 2 2 2 2 . 2 2 Hottest 120 | . 40 46 91 120 . 120 120 Shots Fired 475 | . 78 24 141 36 . 35 161 Gun 230 | . 78 24 81 . . . 47 Cannon 233 | . . . 58 36 . 30 109 Launcher 12 | . . . 2 . . 5 5 Special . | . . . . . . . . Kinetic 304 | . 78 24 81 . . . 121 Thermal 159 | . . . 58 36 . 30 35 Explosive 12 | . . . 2 . . 5 5 Electromagnetic . | . . . . . . . . Robot Hit Streak 33 | . 8 4 19 12 . 13 33 Robot Miss Streak 12 | . 4 1 5 3 . 2 12 Penetration Max . | . . . . . . . . Secondary Targets 1 | . 1 . . . . . . Max Gunslinging Chain 1 | . 1 . . . . . . Shots Hit Robots 320 | . 43 15 91 26 . 24 121 Core Hits 213 | . 19 9 44 11 . 26 104 Critical Kills 1 | . 1 . . . . . . Critical Parts Destroyed 3 | . . 1 1 . . . 1 Critical Strikes 4 | . 1 1 1 . . . 1 Destroy 4 | . 1 1 1 . . . 1 Melee Attacks . | . . . . . . . . Impact . | . . . . . . . . Slashing . | . . . . . . . . Piercing . | . . . . . . . . Sneak Attacks . | . . . . . . . . Combat Hostiles . | . . . . . . . . Follow-up Attacks . | . . . . . . . . Damage Inflicted 7261 | . 596 252 1955 619 . 1064 2775 Guns 2459 | . 596 248 843 . . . 772 Cannons 3661 | . . . 912 619 . 500 1630 Explosions 1114 | . . . 200 . . 564 350 Melee . | . . . . . . . . Ramming 27 | . . 4 . . . . 23 Kinetic 3576 | . 596 248 843 . . . 1889 Thermal 2544 | . . . 912 619 . 500 513 Explosive 1114 | . . . 200 . . 564 350 Electromagnetic . | . . . . . . . . Impact . | . . . . . . . . Slashing . | . . . . . . . . Piercing . | . . . . . . . . Highest Corruption 2 | . . 2 . . . . . Average Corruption 2 | . . 2 . . . . . Corruption Purged . | . . . . . . . . Corruption Blocked . | . . . . . . . . Effects 4 | . . 4 . . . . . Message Errors 2 | . . 2 . . . . . Matter Fused 1 | . . 1 . . . . . Heat Flow Errors 1 | . . 1 . . . . . Overload Shots . | . . . . . . . . Overflow Damage 42 | . . . 16 5 . 12 9 Projectiles 30 | . . . 16 5 . . 9 Explosions 12 | . . . . . . 12 . Melee . | . . . . . . . . Knockbacks 54 | . . . . . . . 54 Impact . | . . . . . . . . Kinetic 45 | . . . . . . . 45 Secondary 9 | . . . . . . . 9 Self-Inflicted Damage 60 | . . 2 14 . . 22 22 Shots 3 | . . . 1 . . 1 1 Rammed 11 | . 1 1 . . . . 9 Targets Rammed 11 | . 1 1 . . . . 9 Kicked . | . . . . . . . . Crushed . | . . . . . . . . Highest Temperature 314 | . . 210 314 48 . 105 270 Average Temperature 74 | . . 71 99 11 . 44 53 Received Heat Transfer 1279 | . 54 30 246 57 . 153 739 Siege Activations . | . . . . . . . . Robots Corrupted . | . . . . . . . . Combat Hostiles . | . . . . . . . . Parts Fried . | . . . . . . . . Impact Corruptions . | . . . . . . . . Robots Melted . | . . . . . . . . Combat Hostiles . | . . . . . . . . Parts Melted 4 | . . . 1 2 . 1 . Heat Transferred 4181 | . . . 1591 962 . 814 814 Parts Sabotaged . | . . . . . . . . Parts Stolen . | . . . . . . . . Parts Stripped . | . . . . . . . . Power Chain Reactions . | . . . . . . . . Alert | -11 -10 -10 -9 -9 -9 -8 -8 ------- Run | Yrd Mat Min Mat Min Exi Min Mat Peak Influence 541 | . 233 64 374 176 . 363 541 Initial 93 | . . 4 5 16 . . 93 Average 146 | . 85 25 167 58 . 223 256 Maximum Alert Level 2 | . 1 . 1 . . 1 2 Low Security (%) 70 | 100 99 100 60 100 . 36 43 Level 1 25 | . . . 39 . . 63 38 Level 2 3 | . . . . . . . 17 Level 3 . | . . . . . . . . Level 4 . | . . . . . . . . Level 5 . | . . . . . . . . High Security . | . . . . . . . . Max Security . | . . . . . . . . Squads Dispatched 11 | . 2 . 3 1 . . 5 Investigation 2 | . 1 . . . . . 1 Extermination . | . . . . . . . . Reinforcement 8 | . 1 . 3 . . . 4 Assault 1 | . . . . 1 . . . Garrison . | . . . . . . . . Intercept . | . . . . . . . . Searches Triggered . | . . . . . . . . Construction Impeded . | . . . . . . . . Haulers Reinforced . | . . . . . . . . Active Scanning Responses . | . . . . . . . . Cargo Convoy Interrupts . | . . . . . . . . Stealth | -11 -10 -10 -9 -9 -9 -8 -8 --------- Run | Yrd Mat Min Mat Min Exi Min Mat Distress Signals 5 | . 1 . 3 . . . 1 Communications Jammed . | . . . . . . . . Distress Signals . | . . . . . . . . Times Spotted 121 | . 17 2 36 8 . 16 42 Peak Tracking Total 7 | . 4 2 5 4 . 4 7 Tactical Retreats 8 | . . . 1 . . 1 6 Traps | -11 -10 -10 -9 -9 -9 -8 -8 ------- Run | Yrd Mat Min Mat Min Exi Min Mat Traps Triggered 1 | . 1 . . . . . . Indirectly . | . . . . . . . . Trap Hack Attempts . | . . . . . . . . Triggered . | . . . . . . . . Disarmed . | . . . . . . . . Reprogrammed . | . . . . . . . . Reused . | . . . . . . . . Traps Extracted . | . . . . . . . . Installed . | . . . . . . . . Triggered . | . . . . . . . . Machines | -11 -10 -10 -9 -9 -9 -8 -8 ---------- Run | Yrd Mat Min Mat Min Exi Min Mat Machines Disabled 7 | . . . 1 3 . . 3 Max in Single Turn 1 | . . . 1 1 . . 1 Machines Repaired . | . . . . . . . . Machines Dismantled . | . . . . . . . . Machines Sabotaged . | . . . . . . . . Overloaded Fab Kills . | . . . . . . . . Hacking | -11 -10 -10 -9 -9 -9 -8 -8 --------- Run | Yrd Mat Min Mat Min Exi Min Mat Machines Accessed 23 | . 6 . 9 . 1 . 7 Terminals 19 | . 6 . 8 . . . 5 Fabricators . | . . . . . . . . Repair Stations 2 | . . . 1 . . . 1 Recycling Units . | . . . . . . . . Scanalyzers 1 | . . . . . . . 1 Garrison Access . | . . . . . . . . Total Hacks 73 | . 19 . 37 . 1 . 16 Successful 36 | . 10 . 17 . 1 . 8 Failed 37 | . 9 . 20 . . . 8 Catastrophic 4 | . . . 2 . . . 2 Database Lockouts . | . . . . . . . . Manual 48 | . 15 . 23 . 1 . 9 Terminals 65 | . 19 . 34 . . . 12 Fabricators . | . . . . . . . . Repair Stations 4 | . . . 3 . . . 1 Recycling Units . | . . . . . . . . Scanalyzers 3 | . . . . . . . 3 Garrison Access . | . . . . . . . . Terminal Hacks 22 | . 7 . 11 . 1 . 3 Robot Analysis 5 | . 4 . 1 . . . . Prototype ID Bank 3 | . 1 . 1 . . . 1 Emergency Access Points 1 | . . . 1 . . . . Terminal Index 2 | . 1 . 1 . . . . Alert Level 1 | . . . 1 . . . . Unreport Threat 4 | . . . 3 . . . 1 Locate Traps 2 | . 1 . 1 . . . . Recall Reinforcements 2 | . . . 1 . . . 1 Registered Components 1 | . . . 1 . . . . Derelict Proto ID Bank 1 | . . . . . 1 . . Fabricator Hacks . | . . . . . . . . Repair Station Hacks 2 | . . . 2 . . . . Scan Component 1 | . . . 1 . . . . Repair 1 | . . . 1 . . . . Recycling Unit Hacks . | . . . . . . . . Scanalyzer 3 | . . . . . . . 3 Insert Component 1 | . . . . . . . 1 Analyze 2 | . . . . . . . 2 Garrison Access Hacks . | . . . . . . . . Unauthorized Hacks 9 | . 3 . 4 . . . 2 Terminals 8 | . 3 . 4 . . . 1 Botnet 6 | . 2 . 3 . . . 1 Operators 2 | . 1 . 1 . . . . Fabricators . | . . . . . . . . Repair Stations 1 | . . . . . . . 1 Patch 1 | . . . . . . . 1 Recycling Units . | . . . . . . . . Scanalyzers . | . . . . . . . . Garrison Access . | . . . . . . . . Data Cores Recovered . | . . . . . . . . Used . | . . . . . . . . Hacking Detections 20 | . 6 . 8 . . . 6 Full Trace Events . | . . . . . . . . Feedback Events . | . . . . . . . . Feedback Blocked . | . . . . . . . . Robot Schematics Acquired . | . . . . . . . . Robots Built . | . . . . . . . . Authchips . | . . . . . . . . Time . | . . . . . . . . Total Robot Build Rating . | . . . . . . . . Part Schematics Acquired 1 | . . . . . . . 1 Parts Built . | . . . . . . . . Authchips . | . . . . . . . . Time . | . . . . . . . . Total Part Build Rating . | . . . . . . . . Parts Repaired 1 | . . . 1 . . . . Time 32 | . . . 32 . . . . Parts Recycled . | . . . . . . . . Recycled Matter . | . . . . . . . . Retrieved Matter . | . . . . . . . . Retrieved Components . | . . . . . . . . Parts Scanalyzed 1 | . . . . . . . 1 Part Schematics Acquired 1 | . . . . . . . 1 Parts Damaged . | . . . . . . . . Bothacking | -11 -10 -10 -9 -9 -9 -8 -8 ------------ Run | Yrd Mat Min Mat Min Exi Min Mat Used RIF Installer . | . . . . . . . . Robots Hacked . | . . . . . . . . Non-combat . | . . . . . . . . Combat . | . . . . . . . . Robot Hacks Applied . | . . . . . . . . Relay Couplers Released . | . . . . . . . . Fabnet Peak Effective % . | . . . . . . . . Robots Rewired . | . . . . . . . . Allies Hacked . | . . . . . . . . Hacks Repelled . | . . . . . . . . Allies | -11 -10 -10 -9 -9 -9 -8 -8 -------- Run | Yrd Mat Min Mat Min Exi Min Mat Total Allies 1 | . . . . 1 . . . Largest Group 1 | . . . . 1 . . . Highest-Rated Group 31 | . . . . 31 . . . Highest-Rated Ally 31 | . . . . 31 . . . Total Orders . | . . . . . . . . Ally Attacks 9 | . . . . 9 . . . Total Damage 140 | . . . . 140 . . . Kills 2 | . . . . 2 . . . Allies Corrupted . | . . . . . . . . Allies Melted . | . . . . . . . . Intel | -11 -10 -10 -9 -9 -9 -8 -8 ------- Run | Yrd Mat Min Mat Min Exi Min Mat Robot Analysis Total 5 | . 4 . 1 . . . . Derelict Logs Recovered 3 | . . 1 . 2 . . . Drone Launches . | . . . . . . . . Drone Recoveries . | . . . . . . . . Exploration | -11 -10 -10 -9 -9 -9 -8 -8 ------------- Run | Yrd Mat Min Mat Min Exi Min Mat Turns Passed 5934 | 76 880 721 1268 719 298 756 1216 Spaces Moved 3710 | 47 466 566 732 505 237 504 653 Core 11 | 11 . . . . . . . Treads 440 | 36 404 . . . . . . Legs . | . . . . . . . . Wheels 3259 | . 62 566 732 505 237 504 653 Hover . | . . . . . . . . Flight . | . . . . . . . . Fastest Speed 50 | 50 115 115 105 115 125 120 120 Average Speed 125 | 134 154 115 119 123 125 127 120 Slowest Speed 170 | 160 160 115 125 165 125 170 125 Overloaded Moves . | . . . . . . . . Propulsion Burnouts . | . . . . . . . . Robots Hopped . | . . . . . . . . Cave-ins Triggered . | . . . . . . . . Exploration Rate (%) 68 | 4 81 99 60 96 61 97 50 Regions Visited 7 Branch Regions 4 Pre-discovered Areas . | . . . . . . . . Known Exits Taken . | . . . . . . . . Unknown Exits Taken 7 | 1 1 1 1 1 1 1 . Scrap Searched 7 | . . 3 . 2 . 2 . Spaces Dug 25 | . . . . . . 1 24 Terrain Destroyed 132 | . . . 23 1 . 53 55 Melee . | . . . . . . . . Projectile 9 | . . . . 1 . 3 5 AOE 123 | . . . 23 . . 50 50 Terrain Rammed . | . . . . . . . . Walls Destroyed . | . . . . . . . . Machines Disabled . | . . . . . . . . Actions | -11 -10 -10 -9 -9 -9 -8 -8 --------- Run | Yrd Mat Min Mat Min Exi Min Mat Total 4483 | 59 553 612 986 563 239 582 889 Wait 347 | . 8 30 132 36 . 47 94 Move 3703 | 46 465 565 731 504 236 503 653 Hop . | . . . . . . . . Pick Up 63 | 7 18 4 17 1 1 3 12 Fast Attach 7 | 3 1 . 3 . . . . Attach 29 | 3 . . 8 3 . 2 13 Detach . | . . . . . . . . Swap 48 | . 9 . 10 1 1 5 22 Drop 31 | . 12 . 14 . 1 2 2 Fire 244 | . 39 12 71 18 . 20 84 Melee . | . . . . . . . . Ram 1 | . . 1 . . . . . Kick . | . . . . . . . . Crush 10 | . 1 . . . . . 9 Escape Stasis . | . . . . . . . . Rewire . | . . . . . . . . Trap . | . . . . . . . . Miscellaneous . | . . . . . . . . Route ------- -11/Scrapyard -10/Materials (discovered 3 exits: *Mat x2 / [*Min]) -10/Mines (discovered 2 exits: *Mat x2) -9/Materials (discovered 2 exits: *Mat / [*Min]) -9/Mines (discovered 3 exits: *Mat x2 / *Exi) -9/Exiles -8/Mines (discovered 2 exits: *Mat x2) -8/Materials (discovered 2 exits: [*Fac x2]) History --------- Turn | Location | Event 10 | -11/Scrapyard | Discovered new exit (range 15) 77 | -11/Scrapyard | Entered Materials 301 | -10/Materials | Build established: Mutant 480 | -10/Materials | Discovered new exit (range 14) 693 | -10/Materials | Discovered new exit (range 11) 937 | -10/Materials | Discovered new exit (range 11) 957 | -10/Materials | Entered Mines 964 | -10/Mines | Learned Materials stockpile data 975 | -10/Mines | Discovered new exit (range 8) 1155 | -10/Mines | Discovered new exit (range 11) 1411 | -10/Mines | YI-UF0 nonchalantly dropped a Grenade Launcher on the ground 1678 | -10/Mines | Entered Materials 1678 | -9/Materials | Evolved 2 slots: Utility x2 1875 | -9/Materials | Repaired Med. Armor Plating 2099 | -9/Materials | Discovered new exit (range 9) 2625 | -9/Materials | Discovered new exit (range 10) 2946 | -9/Materials | Entered Mines 3135 | -9/Mines | Core integrity fell below 50% 3240 | -9/Mines | Learned Materials stockpile data 3399 | -9/Mines | Discovered new exit (range 13) 3400 | -9/Mines | Met a Derelict testing a Signal Generator 3479 | -9/Mines | Discovered new exit (range 5) 3550 | -9/Mines | Received a Rocket Launcher from a helpful Derelict 3588 | -9/Mines | Learned Materials terminal intel 3660 | -9/Mines | Deemed a non-threat by the Exiles lab entrance 3660 | -9/Mines | Discovered new exit (range 5) 3665 | -9/Mines | Entered Exiles 3695 | -9/Exiles | Met 8R-AWN 3718 | -9/Exiles | Met EX-HEX 3754 | -9/Exiles | Met EX-BIN 3768 | -9/Exiles | Aligned with FarCom system 3769 | -9/Exiles | Given EX-Vault access code 3798 | -9/Exiles | Opened EX-Vault 3804 | -9/Exiles | Found YOLO Cannon 3829 | -9/Exiles | Warned to stay clear of 0b10 Research branches 3863 | -9/Exiles | Met EX-DEC 3949 | -9/Exiles | Discovered new exit (range 14) 3963 | -9/Exiles | Left Exiles lab with YOLO Cannon 3963 | -9/Exiles | Entered Mines 4585 | -8/Mines | Discovered new exit (range 9) 4661 | -8/Mines | Discovered new exit (range 6) 4719 | -8/Mines | Entered Materials 4719 | -8/Materials | Evolved 2 slots: Utility x2 4721 | -8/Materials | Loaded intel: 11 terminal locations 4971 | -8/Materials | Lost 6 parts (2n3u1w) 5281 | -8/Materials | Discovered new exit (range 13) 5508 | -8/Materials | Discovered new exit (range 12) 5771 | -8/Materials | Build established: Hacker-Mutant 5795 | -8/Materials | Core integrity fell below 50% 5935 | -8/Materials | Self-destructed Last Messages --------------- 05867_ K-01 Serf collects debris. 05877_ ALERT: Hostiles spotted, dispatching reinforcements to Terminal M004. 05881_ K-01 Serf collects debris. 05894_ Connecting with Terminal... >>Recall(Reinforcements) Establishing remote squad link... Recalled reinforcement squad R4MRGOYPE9. 05902_ K-01 Serf cleans the Terminal. 05906_ K-01 Serf cleans the Processing Tank. 05907_ K-01 Serf cleans the Terminal. 05910_ K-01 Serf cleans the Material Processor. 05910_ K-01 Serf cleans the Processing Tank. 05911_ K-01 Serf cleans the Terminal. 05926_ Processing Tank disabled. 05927_ K-01 Serf cleans the Terminal. 05928_ K-01 Serf collects debris. 05929_ G-47 Trooper destroyed. 05930_ Acquired 46 matter. 05933_ K-01 Serf collects debris. Map ----- +----------------------------------------------------+ | ???????????????????????????????????# #= # | | ???????????????????????????????????# # # | | ???????T???????????????????????????# ########### | | ???????????????????????????????????# ########### | | ???????????????????????????????????# ????????### | | ???????????????????????????????????# ???####??## | | ???????????????????????????????????# ??######### | | ???????????????????????????????????? ?# # | | ??????????????????????#######??????????????? """ # | | ??????????????????????# ######?????????? """ # | | ??????????????????????# ?????????? """%" | | ??????????????????????# | ?????H? / !# | | ??????????????????????# ????w?????# * """ # | | ??????????????????????? ! #???????????# """ | | ???????????????????????# #?????????????????""" # | | ??????????????????###??# #???????????????? # | | ????????????????? ?# #???????????????####### | | ????????????????? """w # u########?????????????## | | ?????????????????""""" #w #? #### | | ?????????????????""""" + #? % = | | ?????????????????""""" #"" #? #### | | ????????????????? """ #"T #??????????????? | | ????????????????? ?#"" #??????????????? | | ????????????????? =?# #??????????????? | | ????????????????#####??# #??????????????? | | ????????????g??????????# @""" #??????????????? | | ???????????????????????# k""" #??????????????? | | ???????????????????????#k "" #??????????????? | | ???????????????????????# =""" #??????????????? | | ???????????????????????#g """ #??????????????? | | ???????????????????????# ! #??????????????? | | ???????????????????????+ ###????????????? | | ???????????????????????# #???????? | | ???????????????????????# #### +???????? | | ???????????????????????# u #??? #???????? | | ?????????????????????####;#####??####/##+#???????? | | ???/?????????????????# = #?????T????????????? | | ????????????g????????# """ #??????????????????? | | ?????????????????????# """ #? ????????????????? | | ?????????????????????# """ #? ?Y???????######## | | ?????????????????????# ## ?????????#[[!!!!# | | ?????????????????????# """ """## #????????#[[!!!! | | ?????????????????????# """ R"## #????? ?# | | ?????????????????????# """ """## #????? ?# #### # | | ?????????????????????# = [## #????? ?# #??## | | ?????????????????????######+#### #????? ?# #??# | | ??????????????????????????# #??# ###??#+### ###### | | ??????????????????######### #??# #??# #[ T | | ??????????????????# # #### #??# # | | ??????????????????# + #??# # """ | +----------------------------------------------------+ Best States ------------- Heat Dissipation 58 Energy Generation 14 Energy Capacity 280 Matter Stores 300 Matter Capacity 300 Sight Range 16 Terrain Scan Density 10 Armor Coverage 375 Evasion (%) 50 Targeting Accuracy 14 Armor Integrity Analysis 30 Recoil Reduction 2 Offensive Hacking 20 Item Schematics ----------------- Arm. Wheel | -8/Materials | Scanalyzed Robot Schematics ------------------ None Fabricated ------------ Nothing Alien Tech Used ----------------- None Achievements -------------- None Challenges ------------ None Game ------ Seed SpectralEtherialVibroblade Manual? 0 Play Time 00:42:01 Cumulative 98.0 hours Start 2024.11.02 @ 10:58:40 End 2024.11.02 @ 15:18:59 Sessions 3 Manual Loads 0 Difficulty Rogue Special Mode None Game No. 153 Rogue 152 Adventurer 1 Explorer 0 Win Type - Total 1 Types 0/0/0/1/0/0/0/0/0 Lore% 57 Gallery% 57 Achievement% 48 Wizard Run 0 Options --------- Layout 1 ASCII 0 Keyboard 0 Movement Mouse Keybinds 0 Fullscreen 2 Font 24/Terminus Map View 50x35 Zoom Use 0% Tactical HUD 1 Map Filters NONE Filters NONE Steam 1 RUN: ec86d27b-ae3f-4d56-a3b1-ad18070b9468